[Event "*** Titled Tuesday Blitz"]
[Site "Chess.com"]
[Date "2021.04.27"]
[Round "2"]
[White "Forantes"]
[Black "ckgchess"]
[Result "1-0"]
[WhiteElo "2502"]
[BlackElo "2673"]
[TimeControl "180+1"]
[EndTime "10:14:43 PDT"]
[Termination "Forantes won by resignation"]

1. Nf3 {[%clk 0:03:00.9]} 1... g6 {[%clk 0:03:00.1]} 2. g3 {[%clk 0:03:00]} 2...
Bg7 {[%clk 0:03:01]} 3. d4 {[%clk 0:03:00.2]} 3... Nf6 {[%clk 0:03:01.4]} 4. Bg2
{[%clk 0:03:00.6]} 4... O-O {[%clk 0:03:02.3]} 5. O-O {[%clk 0:03:00.4]} 5... d6
{[%clk 0:03:03.2]} 6. b3 {[%clk 0:03:00.6]} 6... c6 {[%clk 0:03:00.2]} 7. c4
{[%clk 0:03:00.4]} 7... Qa5 {[%clk 0:03:00.6]} 8. Bb2 {[%clk 0:02:59]} 8... Qh5
{[%clk 0:03:00.7]} 9. Nc3 {[%clk 0:02:58.9]} 9... Bh3 {[%clk 0:03:00.5]} 10. Qd2
{[%clk 0:02:56.6]} 10... Nbd7 {[%clk 0:02:55.4]} 11. Qg5 {[%clk 0:02:55.4]}
11... Qxg5 {[%clk 0:02:52.3]} 12. Nxg5 {[%clk 0:02:56.3]} 12... Bxg2 {[%clk
0:02:52.7]} 13. Kxg2 {[%clk 0:02:56.7]} 13... h6 {[%clk 0:02:24.1]} 14. Nf3
{[%clk 0:02:45.8]} 14... d5 {[%clk 0:02:17.7]} 15. cxd5 {[%clk 0:02:40.1]} 15...
Nxd5 {[%clk 0:02:18.6]} 16. Nxd5 {[%clk 0:02:39.9]} 16... cxd5 {[%clk
0:02:19.5]} 17. Rac1 {[%clk 0:02:40.3]} 17... Rac8 {[%clk 0:02:17.6]} 18. Ba3
{[%clk 0:02:40.6]} 18... Bf6 {[%clk 0:02:16.2]} 19. e3 {[%clk 0:02:38.9]} 19...
Rfe8 {[%clk 0:02:13.2]} 20. Rxc8 {[%clk 0:02:38.6]} 20... Rxc8 {[%clk
0:02:14.1]} 21. Rc1 {[%clk 0:02:39.3]} 21... Rxc1 {[%clk 0:02:13.5]} 22. Bxc1
{[%clk 0:02:40.2]} 22... e6 {[%clk 0:02:10.8]} 23. Ba3 {[%clk 0:02:40.1]} 23...
Bd8 {[%clk 0:01:57.5]} 24. Ne1 {[%clk 0:02:40]} 24... f6 {[%clk 0:01:56]} 25.
Nd3 {[%clk 0:02:40.4]} 25... Bb6 {[%clk 0:01:51.8]} 26. Bd6 {[%clk 0:02:35]}
26... Kf7 {[%clk 0:01:50.3]} 27. Kf3 {[%clk 0:02:35.3]} 27... e5 {[%clk
0:01:44.6]} 28. dxe5 {[%clk 0:02:35.1]} 28... Ke6 {[%clk 0:01:44.6]} 29. Nf4+
{[%clk 0:02:29.1]} 29... Kf5 {[%clk 0:01:35.9]} 30. g4+ {[%clk 0:02:28.4]} 30...
Kg5 {[%clk 0:01:36.3]} 31. Ne6+ {[%clk 0:02:18.4]} 31... Kh4 {[%clk 0:01:36.1]}
32. exf6 {[%clk 0:02:16.9]} 32... Nxf6 {[%clk 0:01:36.6]} 33. Bg3+ {[%clk
0:02:16.4]} 1-0

[Event "*** Titled Tuesday Blitz"]
[Site "Chess.com"]
[Date "2021.04.27"]
[Round "2"]
[White "thechesscorner64"]
[Black "mr65"]
[Result "0-1"]
[WhiteElo "2400"]
[BlackElo "2186"]
[TimeControl "180+1"]
[EndTime "10:15:11 PDT"]
[Termination "mr65 won by resignation"]

1. e4 {[%clk 0:02:59.1]} 1... e5 {[%clk 0:02:59.4]} 2. Nf3 {[%clk 0:02:59.3]}
2... Nc6 {[%clk 0:02:59.3]} 3. Bc4 {[%clk 0:02:59.5]} 3... Nf6 {[%clk
0:02:58.7]} 4. d3 {[%clk 0:02:59.6]} 4... Bc5 {[%clk 0:02:57.6]} 5. c3 {[%clk
0:03:00]} 5... O-O {[%clk 0:02:56.6]} 6. Nbd2 {[%clk 0:03:00.1]} 6... h6 {[%clk
0:02:53.2]} 7. Nf1 {[%clk 0:02:59.9]} 7... d5 {[%clk 0:02:52.9]} 8. exd5 {[%clk
0:02:59.9]} 8... Nxd5 {[%clk 0:02:52.7]} 9. Ng3 {[%clk 0:03:00.1]} 9... Na5
{[%clk 0:02:41.3]} 10. Bb3 {[%clk 0:02:49.2]} 10... Nxb3 {[%clk 0:02:39.9]} 11.
axb3 {[%clk 0:02:50.1]} 11... Nf4 {[%clk 0:02:33.2]} 12. d4 {[%clk 0:02:45.2]}
12... Nxg2+ {[%clk 0:02:20.9]} 13. Kf1 {[%clk 0:02:45.4]} 13... Bh3 {[%clk
0:02:20.5]} 14. Kg1 {[%clk 0:02:37.5]} 14... exd4 {[%clk 0:02:16.6]} 15. cxd4
{[%clk 0:02:32.1]} 15... Bd6 {[%clk 0:01:54.1]} 16. Qd3 {[%clk 0:02:22.5]} 16...
Re8 {[%clk 0:01:44.5]} 17. Be3 {[%clk 0:02:18.7]} 17... Qf6 {[%clk 0:01:28.8]}
18. Ra5 {[%clk 0:01:53.4]} 18... Qxf3 {[%clk 0:01:14.7]} 19. Rh5 {[%clk
0:01:52.7]} 19... Nf4 {[%clk 0:01:03.7]} 0-1

[Event "*** Titled Tuesday Blitz"]
[Site "Chess.com"]
[Date "2021.04.27"]
[Round "2"]
[White "Chessmasterzt"]
[Black "amintabatabaei"]
[Result "0-1"]
[WhiteElo "2607"]
[BlackElo "2990"]
[TimeControl "180+1"]
[EndTime "10:15:29 PDT"]
[Termination "amintabatabaei won by resignation"]

1. d4 {[%clk 0:03:00.2]} 1... Nf6 {[%clk 0:02:59]} 2. c4 {[%clk 0:02:58.8]} 2...
c5 {[%clk 0:02:59.4]} 3. Nf3 {[%clk 0:02:54.9]} 3... g6 {[%clk 0:02:57.8]} 4.
Nc3 {[%clk 0:02:49.4]} 4... cxd4 {[%clk 0:02:53.2]} 5. Nxd4 {[%clk 0:02:49.3]}
5... Nc6 {[%clk 0:02:52.5]} 6. e4 {[%clk 0:02:44.4]} 6... Nxd4 {[%clk
0:02:52.9]} 7. Qxd4 {[%clk 0:02:44.3]} 7... d6 {[%clk 0:02:53.8]} 8. Be3 {[%clk
0:02:31.3]} 8... Bg7 {[%clk 0:02:53.5]} 9. f3 {[%clk 0:02:29.9]} 9... O-O {[%clk
0:02:53.2]} 10. Qd2 {[%clk 0:02:29.2]} 10... a5 {[%clk 0:02:53.9]} 11. Be2
{[%clk 0:02:05.7]} 11... a4 {[%clk 0:02:52.9]} 12. Rc1 {[%clk 0:02:01.2]} 12...
Qa5 {[%clk 0:02:53.2]} 13. Nb5 {[%clk 0:01:43.8]} 13... Qxd2+ {[%clk 0:02:40.3]}
14. Kxd2 {[%clk 0:01:41.6]} 14... Nd7 {[%clk 0:02:38.4]} 15. Rc2 {[%clk
0:01:39.8]} 15... Nc5 {[%clk 0:02:32.3]} 16. Nc7 {[%clk 0:01:37.6]} 16... Ra5
{[%clk 0:02:28.1]} 17. Nd5 {[%clk 0:01:37.7]} 17... Re8 {[%clk 0:02:24.1]} 18.
Rb1 {[%clk 0:01:35.8]} 18... e6 {[%clk 0:02:23.7]} 19. Nc7 {[%clk 0:01:29.3]}
19... Rd8 {[%clk 0:02:17.3]} 20. b4 {[%clk 0:01:26.2]} 20... axb3 {[%clk
0:02:18.2]} 21. axb3 {[%clk 0:01:26.8]} 21... Ra3 {[%clk 0:02:18.9]} 22. b4
{[%clk 0:01:07.2]} 22... Nb3+ {[%clk 0:02:17.6]} 23. Ke1 {[%clk 0:01:04.9]}
23... Bd7 {[%clk 0:02:17.9]} 24. Nb5 {[%clk 0:00:55.2]} 24... Bxb5 {[%clk
0:02:15.4]} 25. cxb5 {[%clk 0:00:56.1]} 25... Nd4 {[%clk 0:02:05.9]} 26. Rc7
{[%clk 0:00:47.3]} 26... Rxe3 {[%clk 0:02:05.4]} 0-1

[Event "*** Titled Tuesday Blitz"]
[Site "Chess.com"]
[Date "2021.04.27"]
[Round "2"]
[White "MalyDominator"]
[Black "OlifantCZ"]
[Result "0-1"]
[WhiteElo "2442"]
[BlackElo "2265"]
[TimeControl "180+1"]
[EndTime "10:15:40 PDT"]
[Termination "OlifantCZ won by resignation"]

1. e4 {[%clk 0:03:00.9]} 1... e6 {[%clk 0:02:59.5]} 2. d4 {[%clk 0:03:00.5]}
2... d5 {[%clk 0:03:00.2]} 3. Nd2 {[%clk 0:03:00.8]} 3... c5 {[%clk 0:02:59.3]}
4. exd5 {[%clk 0:02:59.4]} 4... Qxd5 {[%clk 0:02:58.7]} 5. Ngf3 {[%clk
0:02:59.5]} 5... cxd4 {[%clk 0:02:58.9]} 6. Bc4 {[%clk 0:02:59.1]} 6... Qd6
{[%clk 0:02:59.5]} 7. O-O {[%clk 0:02:58.9]} 7... Nf6 {[%clk 0:03:00.2]} 8. Nb3
{[%clk 0:02:58.7]} 8... Nc6 {[%clk 0:03:01]} 9. Nbxd4 {[%clk 0:02:58.2]} 9...
Nxd4 {[%clk 0:03:01.6]} 10. Nxd4 {[%clk 0:02:58.8]} 10... a6 {[%clk 0:03:02.1]}
11. Re1 {[%clk 0:02:57.8]} 11... Bd7 {[%clk 0:03:01.2]} 12. c3 {[%clk
0:02:55.7]} 12... Qc7 {[%clk 0:03:00.9]} 13. Bf1 {[%clk 0:02:50.8]} 13... Bd6
{[%clk 0:02:58.8]} 14. Nf5 {[%clk 0:02:36.5]} 14... Bxh2+ {[%clk 0:02:55.8]} 15.
Kh1 {[%clk 0:02:35.6]} 15... Kf8 {[%clk 0:02:56.1]} 16. Qd4 {[%clk 0:02:22.2]}
16... exf5 {[%clk 0:02:49]} 17. Qh4 {[%clk 0:01:35.5]} 17... Bd6 {[%clk
0:02:41.5]} 18. Bg5 {[%clk 0:01:34.9]} 18... Ne4 {[%clk 0:02:40]} 19. Be3 {[%clk
0:01:30.8]} 19... Re8 {[%clk 0:02:12.9]} 20. Rad1 {[%clk 0:01:29.6]} 20... Re6
{[%clk 0:02:12.3]} 21. Bc4 {[%clk 0:01:24.6]} 21... Qxc4 {[%clk 0:02:10.4]} 22.
Qd8+ {[%clk 0:01:16.2]} 22... Be8 {[%clk 0:02:05.4]} 23. Bb6 {[%clk 0:00:42.1]}
23... Rh6+ {[%clk 0:01:57.3]} 24. Kg1 {[%clk 0:00:42.1]} 24... Bh2+ {[%clk
0:01:57.9]} 25. Kh1 {[%clk 0:00:42.6]} 25... Bc7+ {[%clk 0:01:51.7]} 0-1

[Event "*** Titled Tuesday Blitz"]
[Site "Chess.com"]
[Date "2021.04.27"]
[Round "2"]
[White "Kislov_Oleg"]
[Black "HanSchut"]
[Result "0-1"]
[WhiteElo "2484"]
[BlackElo "2294"]
[TimeControl "180+1"]
[EndTime "10:15:41 PDT"]
[Termination "HanSchut won by resignation"]

1. e4 {[%clk 0:03:00.9]} 1... c5 {[%clk 0:02:59.7]} 2. Nf3 {[%clk 0:03:00]} 2...
d6 {[%clk 0:03:00.1]} 3. d4 {[%clk 0:03:00]} 3... cxd4 {[%clk 0:03:01]} 4. Nxd4
{[%clk 0:03:00.8]} 4... Nf6 {[%clk 0:03:01.4]} 5. Nc3 {[%clk 0:03:01.5]} 5... a6
{[%clk 0:03:01.2]} 6. Bg5 {[%clk 0:03:01.8]} 6... e6 {[%clk 0:03:01.7]} 7. f4
{[%clk 0:03:01.6]} 7... Be7 {[%clk 0:03:02]} 8. Qf3 {[%clk 0:03:01.4]} 8... h6
{[%clk 0:03:02.6]} 9. Bh4 {[%clk 0:02:54]} 9... g5 {[%clk 0:03:02.5]} 10. fxg5
{[%clk 0:02:39.7]} 10... Nfd7 {[%clk 0:03:02.9]} 11. Nxe6 {[%clk 0:02:28.4]}
11... fxe6 {[%clk 0:03:03.8]} 12. Qh5+ {[%clk 0:02:28.4]} 12... Kf8 {[%clk
0:03:04.4]} 13. Bc4 {[%clk 0:02:27.5]} 13... Ne5 {[%clk 0:03:02.7]} 14. O-O+
{[%clk 0:02:26.1]} 14... Kg8 {[%clk 0:02:59.4]} 15. Nd5 {[%clk 0:02:07.6]} 15...
hxg5 {[%clk 0:02:40.8]} 16. Nxe7+ {[%clk 0:01:16.9]} 16... Qxe7 {[%clk
0:02:41.7]} 17. Rf8+ {[%clk 0:01:07.4]} 17... Qxf8 {[%clk 0:02:28.9]} 18. Qxg5+
{[%clk 0:01:07.2]} 18... Qg7 {[%clk 0:02:20.3]} 19. Qd8+ {[%clk 0:00:56]} 19...
Kh7 {[%clk 0:02:09.4]} 20. Qa5 {[%clk 0:00:45]} 20... Nbc6 {[%clk 0:01:58.6]}
21. Qc3 {[%clk 0:00:40.2]} 21... Nxc4 {[%clk 0:01:51.3]} 22. Qxc4 {[%clk
0:00:37.1]} 22... Qd4+ {[%clk 0:01:51.4]} 0-1

[Event "*** Titled Tuesday Blitz"]
[Site "Chess.com"]
[Date "2021.04.27"]
[Round "2"]
[White "vinniethepooh"]
[Black "Kozok"]
[Result "1-0"]
[WhiteElo "2742"]
[BlackElo "2520"]
[TimeControl "180+1"]
[EndTime "10:15:48 PDT"]
[Termination "vinniethepooh won by resignation"]

1. d4 {[%clk 0:03:00.9]} 1... Nf6 {[%clk 0:02:56.1]} 2. c4 {[%clk 0:03:01.5]}
2... e6 {[%clk 0:02:56.3]} 3. Nc3 {[%clk 0:03:02.1]} 3... d5 {[%clk 0:02:55.9]}
4. cxd5 {[%clk 0:03:01.7]} 4... exd5 {[%clk 0:02:56.2]} 5. Bg5 {[%clk
0:03:02.1]} 5... Bb4 {[%clk 0:02:56.2]} 6. e3 {[%clk 0:03:01.9]} 6... h6 {[%clk
0:02:55.9]} 7. Bxf6 {[%clk 0:02:59]} 7... Qxf6 {[%clk 0:02:56.8]} 8. Bd3 {[%clk
0:02:59.3]} 8... O-O {[%clk 0:02:56]} 9. Ne2 {[%clk 0:02:59.8]} 9... c6 {[%clk
0:02:43.5]} 10. O-O {[%clk 0:02:58.8]} 10... Bd6 {[%clk 0:02:43.2]} 11. Ng3
{[%clk 0:02:55.9]} 11... Nd7 {[%clk 0:02:36.6]} 12. Rb1 {[%clk 0:02:53.8]} 12...
a5 {[%clk 0:02:33.4]} 13. a3 {[%clk 0:02:51.9]} 13... Nb6 {[%clk 0:02:26.3]} 14.
b4 {[%clk 0:02:40]} 14... axb4 {[%clk 0:02:22.7]} 15. axb4 {[%clk 0:02:40.9]}
15... Ra3 {[%clk 0:02:18.4]} 16. Qc1 {[%clk 0:02:40.9]} 16... Ra7 {[%clk
0:02:11.8]} 17. b5 {[%clk 0:02:40.9]} 17... Bxg3 {[%clk 0:02:05.2]} 18. hxg3
{[%clk 0:02:35.9]} 18... Na4 {[%clk 0:02:02.5]} 19. Ra1 {[%clk 0:02:21.4]} 19...
Nxc3 {[%clk 0:01:54.3]} 20. Rxa7 {[%clk 0:02:19.8]} 20... Nxb5 {[%clk
0:01:54.6]} 21. Bxb5 {[%clk 0:02:19.8]} 21... cxb5 {[%clk 0:01:55.5]} 22. Qc5
{[%clk 0:02:09.9]} 22... Be6 {[%clk 0:01:20.5]} 23. Rxb7 {[%clk 0:02:05.6]}
23... h5 {[%clk 0:01:18.4]} 24. Ra1 {[%clk 0:01:59.9]} 24... g6 {[%clk
0:01:12.5]} 25. Qxb5 {[%clk 0:01:55.7]} 25... h4 {[%clk 0:01:10.7]} 26. gxh4
{[%clk 0:01:54.5]} 26... Qxh4 {[%clk 0:01:11.6]} 27. Qc5 {[%clk 0:01:51.1]}
27... Kg7 {[%clk 0:01:08.6]} 28. Qd6 {[%clk 0:01:49.6]} 28... Rc8 {[%clk
0:00:59.4]} 29. Qxe6 {[%clk 0:01:45.7]} 1-0

[Event "*** Titled Tuesday Blitz"]
[Site "Chess.com"]
[Date "2021.04.27"]
[Round "2"]
[White "LordIron"]
[Black "Iball95"]
[Result "0-1"]
[WhiteElo "2276"]
[BlackElo "2622"]
[TimeControl "180+1"]
[EndTime "10:15:56 PDT"]
[Termination "Iball95 won by resignation"]

1. d4 {[%clk 0:03:00.9]} 1... e6 {[%clk 0:02:59.3]} 2. Nf3 {[%clk 0:03:01.3]}
2... c5 {[%clk 0:02:59]} 3. g3 {[%clk 0:03:00.5]} 3... d5 {[%clk 0:02:53.1]} 4.
Bg2 {[%clk 0:03:00.5]} 4... Nf6 {[%clk 0:02:52.1]} 5. O-O {[%clk 0:03:00.2]}
5... Nc6 {[%clk 0:02:52.3]} 6. b3 {[%clk 0:03:00.4]} 6... cxd4 {[%clk
0:02:50.3]} 7. Nxd4 {[%clk 0:03:01.3]} 7... Bc5 {[%clk 0:02:50.5]} 8. Bb2 {[%clk
0:03:01.7]} 8... O-O {[%clk 0:02:50.3]} 9. e3 {[%clk 0:02:56.4]} 9... Re8 {[%clk
0:02:42.5]} 10. c4 {[%clk 0:02:30.6]} 10... Bd7 {[%clk 0:02:09]} 11. cxd5 {[%clk
0:02:21.3]} 11... Nxd5 {[%clk 0:02:04]} 12. Nxc6 {[%clk 0:01:52.5]} 12... Bxc6
{[%clk 0:02:04.9]} 13. Nd2 {[%clk 0:01:52.5]} 13... Nxe3 {[%clk 0:01:07.2]} 14.
fxe3 {[%clk 0:01:47.4]} 14... Bxe3+ {[%clk 0:01:08.1]} 15. Rf2 {[%clk
0:01:48.1]} 15... Bxf2+ {[%clk 0:01:08.1]} 16. Kxf2 {[%clk 0:01:48.1]} 16...
Qb6+ {[%clk 0:01:08.6]} 17. Kf1 {[%clk 0:01:42.9]} 17... Rad8 {[%clk 0:01:07.9]}
18. Qe2 {[%clk 0:01:31.7]} 18... Rxd2 {[%clk 0:01:00.9]} 19. Qxd2 {[%clk
0:01:27.1]} 19... Bb5+ {[%clk 0:01:00.9]} 0-1

[Event "*** Titled Tuesday Blitz"]
[Site "Chess.com"]
[Date "2021.04.27"]
[Round "2"]
[White "DarkAlekhine"]
[Black "stolencandy13"]
[Result "1-0"]
[WhiteElo "2684"]
[BlackElo "2482"]
[TimeControl "180+1"]
[EndTime "10:16:09 PDT"]
[Termination "DarkAlekhine won by checkmate"]

1. e4 {[%clk 0:03:00.9]} 1... c6 {[%clk 0:02:59.5]} 2. d4 {[%clk 0:02:59]} 2...
d5 {[%clk 0:03:00.1]} 3. e5 {[%clk 0:02:59.6]} 3... Bf5 {[%clk 0:03:00]} 4. Nf3
{[%clk 0:03:00.1]} 4... e6 {[%clk 0:03:00.2]} 5. Be2 {[%clk 0:03:00.7]} 5... Bg6
{[%clk 0:02:59.1]} 6. O-O {[%clk 0:03:00.3]} 6... Nh6 {[%clk 0:02:59.7]} 7. c3
{[%clk 0:02:59]} 7... Nf5 {[%clk 0:02:59.7]} 8. Re1 {[%clk 0:02:53.6]} 8... Be7
{[%clk 0:02:57.5]} 9. a4 {[%clk 0:02:52.7]} 9... a6 {[%clk 0:02:57.3]} 10. Na3
{[%clk 0:02:53]} 10... c5 {[%clk 0:02:57]} 11. Nc2 {[%clk 0:02:52.6]} 11... Nc6
{[%clk 0:02:56.8]} 12. Ne3 {[%clk 0:02:47.8]} 12... O-O {[%clk 0:02:43.6]} 13.
Nxf5 {[%clk 0:02:45.1]} 13... Bxf5 {[%clk 0:02:44.5]} 14. Bd3 {[%clk 0:02:33.2]}
14... Bg4 {[%clk 0:02:37.7]} 15. dxc5 {[%clk 0:02:20.6]} 15... Bxc5 {[%clk
0:02:24.9]} 16. a5 {[%clk 0:02:14.6]} 16... Re8 {[%clk 0:02:13.6]} 17. Ra4
{[%clk 0:02:13.6]} 17... Bxf3 {[%clk 0:02:12.8]} 18. Qxf3 {[%clk 0:02:12.8]}
18... Bf8 {[%clk 0:02:05.2]} 19. Rg4 {[%clk 0:01:52.2]} 19... Rc8 {[%clk
0:01:50.3]} 20. Bg5 {[%clk 0:01:44.3]} 20... Be7 {[%clk 0:01:27.5]} 21. Bxh7+
{[%clk 0:01:35]} 21... Kxh7 {[%clk 0:01:26.7]} 22. Qh3+ {[%clk 0:01:34.7]} 22...
Kg8 {[%clk 0:01:20]} 23. Rh4 {[%clk 0:01:34.9]} 23... f6 {[%clk 0:00:28.2]} 24.
Rh8+ {[%clk 0:01:33.9]} 24... Kf7 {[%clk 0:00:28.8]} 25. Qh5+ {[%clk 0:01:34.5]}
25... g6 {[%clk 0:00:28.9]} 26. Qh7# {[%clk 0:01:35.1]} 1-0

[Event "*** Titled Tuesday Blitz"]
[Site "Chess.com"]
[Date "2021.04.27"]
[Round "2"]
[White "Beca95"]
[Black "pastouche06"]
[Result "1-0"]
[WhiteElo "2855"]
[BlackElo "2567"]
[TimeControl "180+1"]
[EndTime "10:16:10 PDT"]
[Termination "Beca95 won by resignation"]

1. d4 {[%clk 0:03:00.9]} 1... d5 {[%clk 0:02:57.7]} 2. c4 {[%clk 0:03:01]} 2...
e6 {[%clk 0:02:57.8]} 3. Nf3 {[%clk 0:03:01.1]} 3... Nf6 {[%clk 0:02:56.9]} 4.
Bg5 {[%clk 0:03:00.5]} 4... dxc4 {[%clk 0:02:45.5]} 5. e4 {[%clk 0:02:59.8]}
5... Bb4+ {[%clk 0:02:41.3]} 6. Nc3 {[%clk 0:02:58.3]} 6... c5 {[%clk
0:02:40.8]} 7. e5 {[%clk 0:02:56.1]} 7... cxd4 {[%clk 0:02:36]} 8. Nxd4 {[%clk
0:02:56.3]} 8... Bxc3+ {[%clk 0:02:32.1]} 9. bxc3 {[%clk 0:02:54.8]} 9... Qa5
{[%clk 0:02:32.6]} 10. exf6 {[%clk 0:02:52.8]} 10... Qxg5 {[%clk 0:02:32.2]} 11.
fxg7 {[%clk 0:02:53.3]} 11... Qxg7 {[%clk 0:02:33.1]} 12. Qd2 {[%clk 0:02:53]}
12... O-O {[%clk 0:02:29.3]} 13. Bxc4 {[%clk 0:02:51.6]} 13... b6 {[%clk
0:02:19.7]} 14. h4 {[%clk 0:02:47.6]} 14... Bb7 {[%clk 0:02:12.9]} 15. Rh3
{[%clk 0:02:46.9]} 15... Kh8 {[%clk 0:02:11.2]} 16. Rg3 {[%clk 0:02:40.3]} 16...
Qe5+ {[%clk 0:02:04.2]} 17. Kf1 {[%clk 0:02:37.3]} 17... Nc6 {[%clk 0:01:52.8]}
18. Nf3 {[%clk 0:02:17.3]} 18... Qf6 {[%clk 0:01:43.6]} 19. Re1 {[%clk
0:02:13.9]} 19... Rad8 {[%clk 0:01:36]} 20. Qc2 {[%clk 0:02:12.9]} 20... Ne7
{[%clk 0:01:33.8]} 21. Bd3 {[%clk 0:02:04.2]} 21... Rg8 {[%clk 0:01:16.1]} 22.
Ng5 {[%clk 0:02:02.5]} 22... Ng6 {[%clk 0:00:52.8]} 23. Qe2 {[%clk 0:01:48.8]}
23... Nf4 {[%clk 0:00:47.4]} 24. Qe5 {[%clk 0:01:48.1]} 1-0

[Event "*** Titled Tuesday Blitz"]
[Site "Chess.com"]
[Date "2021.04.27"]
[Round "2"]
[White "campomania3"]
[Black "aa175"]
[Result "0-1"]
[WhiteElo "2217"]
[BlackElo "2439"]
[TimeControl "180+1"]
[EndTime "10:16:26 PDT"]
[Termination "aa175 won by resignation"]

1. d4 {[%clk 0:03:00.9]} 1... e5 {[%clk 0:02:46.3]} 2. dxe5 {[%clk 0:02:59.6]}
2... Nc6 {[%clk 0:02:41.1]} 3. Nf3 {[%clk 0:02:59.9]} 3... Qe7 {[%clk
0:02:41.1]} 4. Nc3 {[%clk 0:03:00.3]} 4... Nxe5 {[%clk 0:02:41.4]} 5. Nd5 {[%clk
0:03:00.7]} 5... Nxf3+ {[%clk 0:02:42.1]} 6. gxf3 {[%clk 0:03:01]} 6... Qd8
{[%clk 0:02:43]} 7. Bg5 {[%clk 0:03:01.1]} 7... Qxg5 {[%clk 0:02:43.5]} 8. Nxc7+
{[%clk 0:03:00.5]} 8... Kd8 {[%clk 0:02:44.1]} 9. Nxa8 {[%clk 0:03:00.5]} 9...
Qe5 {[%clk 0:02:41.1]} 10. c3 {[%clk 0:02:42.4]} 10... Qb8 {[%clk 0:02:35.5]}
11. Qd5 {[%clk 0:02:29.7]} 11... Nf6 {[%clk 0:02:10.1]} 12. Qxf7 {[%clk
0:02:24.3]} 12... Bc5 {[%clk 0:02:04.9]} 13. Qxg7 {[%clk 0:01:54.7]} 13... Rf8
{[%clk 0:02:00.5]} 14. e4 {[%clk 0:01:38.8]} 14... Qf4 {[%clk 0:01:52.7]} 15.
Qg3 {[%clk 0:01:29.9]} 15... Bxf2+ {[%clk 0:01:23.2]} 16. Qxf2 {[%clk
0:01:20.8]} 16... Nxe4 {[%clk 0:01:21.3]} 17. Qc2 {[%clk 0:00:21.6]} 17... Qxf3
{[%clk 0:01:16.3]} 18. Rg1 {[%clk 0:00:17.5]} 18... Qe3+ {[%clk 0:01:14.2]} 0-1

[Event "*** Titled Tuesday Blitz"]
[Site "Chess.com"]
[Date "2021.04.27"]
[Round "2"]
[White "mamonika"]
[Black "Smile2005"]
[Result "0-1"]
[WhiteElo "2041"]
[BlackElo "2363"]
[TimeControl "180+1"]
[EndTime "10:16:26 PDT"]
[Termination "Smile2005 won on time"]

1. e4 {[%clk 0:03:00.9]} 1... c5 {[%clk 0:02:57.1]} 2. Nf3 {[%clk 0:03:00.8]}
2... Nc6 {[%clk 0:02:57.5]} 3. d4 {[%clk 0:03:00.9]} 3... cxd4 {[%clk
0:02:57.9]} 4. Nxd4 {[%clk 0:03:01.4]} 4... Nf6 {[%clk 0:02:57.3]} 5. Nc3 {[%clk
0:03:00.5]} 5... d6 {[%clk 0:02:57.4]} 6. Be2 {[%clk 0:02:55]} 6... g6 {[%clk
0:02:57.4]} 7. O-O {[%clk 0:02:41]} 7... Bg7 {[%clk 0:02:57.6]} 8. Nb3 {[%clk
0:02:41.1]} 8... O-O {[%clk 0:02:58.2]} 9. Bg5 {[%clk 0:02:41.3]} 9... h6 {[%clk
0:02:56.1]} 10. Bh4 {[%clk 0:02:40.9]} 10... Bd7 {[%clk 0:02:52.2]} 11. Re1
{[%clk 0:02:40.6]} 11... Rc8 {[%clk 0:02:52]} 12. Bf1 {[%clk 0:02:40]} 12... Ne5
{[%clk 0:02:51.8]} 13. Nd5 {[%clk 0:02:27.8]} 13... g5 {[%clk 0:02:49.1]} 14.
Bg3 {[%clk 0:02:27.6]} 14... Nxd5 {[%clk 0:02:47.9]} 15. exd5 {[%clk 0:02:26]}
15... Qb6 {[%clk 0:02:47.7]} 16. Qd2 {[%clk 0:01:58.5]} 16... Ng6 {[%clk
0:02:43.1]} 17. c3 {[%clk 0:01:55.2]} 17... a5 {[%clk 0:02:38]} 18. Bd3 {[%clk
0:01:40.1]} 18... Bf6 {[%clk 0:02:33.6]} 19. Bxg6 {[%clk 0:01:37.2]} 19... fxg6
{[%clk 0:02:34.5]} 20. Rad1 {[%clk 0:01:01.8]} 20... Bg4 {[%clk 0:02:30.7]} 21.
Rc1 {[%clk 0:00:55.1]} 21... a4 {[%clk 0:02:30.4]} 22. Na1 {[%clk 0:00:47.4]}
22... Bf5 {[%clk 0:02:29.3]} 23. b3 {[%clk 0:00:26.1]} 23... h5 {[%clk
0:02:28.4]} 24. h3 {[%clk 0:00:20.5]} 24... Rc7 {[%clk 0:02:07.5]} 25. c4 {[%clk
0:00:20.5]} 25... Qc5 {[%clk 0:02:04.4]} 26. b4 {[%clk 0:00:18.5]} 26... Qd4
{[%clk 0:02:04.3]} 27. Qxd4 {[%clk 0:00:14.9]} 27... Bxd4 {[%clk 0:02:05.2]} 28.
a3 {[%clk 0:00:06.1]} 28... Rfc8 {[%clk 0:02:03.2]} 29. Rcd1 {[%clk 0:00:03.6]}
29... Bf6 {[%clk 0:02:02.8]} 0-1

[Event "*** Titled Tuesday Blitz"]
[Site "Chess.com"]
[Date "2021.04.27"]
[Round "2"]
[White "AlexTriapishko"]
[Black "AlexPapasimakopoulos"]
[Result "1-0"]
[WhiteElo "2861"]
[BlackElo "2572"]
[TimeControl "180+1"]
[EndTime "10:16:31 PDT"]
[Termination "AlexTriapishko won by resignation"]

1. e4 {[%clk 0:03:00.9]} 1... e6 {[%clk 0:02:52.4]} 2. d4 {[%clk 0:02:52.9]}
2... d5 {[%clk 0:02:52.5]} 3. Nc3 {[%clk 0:02:53.8]} 3... Bb4 {[%clk 0:02:52]}
4. e5 {[%clk 0:02:53.6]} 4... b6 {[%clk 0:02:52.2]} 5. a3 {[%clk 0:02:53.2]}
5... Bf8 {[%clk 0:02:51.9]} 6. f4 {[%clk 0:02:50.2]} 6... Nh6 {[%clk 0:02:51.8]}
7. Nf3 {[%clk 0:02:50]} 7... Be7 {[%clk 0:02:51.9]} 8. Bd3 {[%clk 0:02:41.3]}
8... Ba6 {[%clk 0:02:50]} 9. O-O {[%clk 0:02:41.3]} 9... Bxd3 {[%clk 0:02:49.6]}
10. Qxd3 {[%clk 0:02:35]} 10... c5 {[%clk 0:02:49.6]} 11. Ne2 {[%clk 0:02:16]}
11... Nc6 {[%clk 0:02:44]} 12. c3 {[%clk 0:02:16.1]} 12... Nf5 {[%clk
0:02:42.4]} 13. g4 {[%clk 0:02:13.9]} 13... Nh4 {[%clk 0:02:32.1]} 14. Nxh4
{[%clk 0:02:13.2]} 14... Bxh4 {[%clk 0:02:33]} 15. f5 {[%clk 0:02:13.8]} 15...
c4 {[%clk 0:02:20.2]} 16. Qh3 {[%clk 0:02:00.3]} 16... Bg5 {[%clk 0:02:16.5]}
17. fxe6 {[%clk 0:02:00.3]} 17... O-O {[%clk 0:01:46.7]} 18. exf7+ {[%clk
0:01:59.4]} 18... Kh8 {[%clk 0:01:46.3]} 19. e6 {[%clk 0:01:54.8]} 19... Bxc1
{[%clk 0:01:39]} 20. Raxc1 {[%clk 0:01:55.7]} 20... Qg5 {[%clk 0:01:32.7]} 21.
Rf5 {[%clk 0:01:46.7]} 21... Qd2 {[%clk 0:01:28.8]} 22. Rh5 {[%clk 0:01:42.7]}
22... h6 {[%clk 0:01:21]} 23. g5 {[%clk 0:01:42.9]} 23... Qd3 {[%clk 0:01:11.5]}
24. gxh6 {[%clk 0:01:28.3]} 24... g6 {[%clk 0:01:07.2]} 25. Nf4 {[%clk 0:01:10]}
25... Qxh3 {[%clk 0:00:48.7]} 26. Nxg6+ {[%clk 0:01:09]} 26... Kh7 {[%clk
0:00:46.7]} 27. Nxf8+ {[%clk 0:01:09.9]} 27... Rxf8 {[%clk 0:00:46.8]} 28. Rxh3
{[%clk 0:01:10.8]} 28... Kg6 {[%clk 0:00:46.2]} 29. h7 {[%clk 0:01:10.5]} 29...
Ne7 {[%clk 0:00:45.8]} 30. h8=Q {[%clk 0:01:10.5]} 1-0